Workbook

Sheet Pasiūlymas
A2: PIRKIMO SĄLYGŲ PRIEDAS "PASIŪLYMO FORMA"
A4: KONSERVUOTI MAISTO PRODUKTAI, SULTYS
A6: Kam: | B6: Gynybos resursų agentūra prie KAM
A8: Data: | B8: 2022-11-28
A9: Nr.: | B9: VP22-11-28/1
A10: Vieta: | B10: Kaunas
A12: Tiekėjo pavadinimas / Ūkio subjektų grupės nariai: | C12: UAB „Officeday“
A13: Tiekėjo kodas (-ai): | C13: 124931353
A14: Tiekėjo adresas (-ai):
A15: Tiekėjo PVM mokėtojo kodas(-ai):
A16: Tiekėjo / Ūkio subjektų grupės atsakingo partnerio sąskaitos numeris, banko pavadinimas ir banko kodas (-ai):
A17: Asmens atsakingo už pasiūlymą vardas, pavardė:
A18: Asmens atsakingo už pasiūlymą telefono numeris, el. pašto adresas:
A19: Tiekėjo / Ūkio subjektų grupės, laimėjimo atveju, pasirašančio sutartį asmens vardas, pavardė, pareigos:
A20: Tiekėjo / Ūkio subjektų grupės, laimėjimo atveju, už sutarties vykdymą atsakingo asmens vardas, pavardė, telefono numeris, elektroninio pašto adresas:
A21: (1) Tiekėjo / Ūkio subjektų grupės narių, (2) ūkio subjektų, kurių pajėgumais remiamasi, ir (3) jei pašalinimo pagrindai taikomi visiems subtiekėjams - subtiekėjų, kolegialaus priežiūros organo (Stebėtojų tarybos) ir (ar) kolegialaus valdymo organo (Valdybos) narių sąrašas (jei sudaryta) ir (ar) asmuo, kuriam suteikti VPĮ 46 str. 2 d. 2 p. numatyti įgaliojimai | G21: =IF((SUMPRODUCT(--(C21=""))>0), "Privaloma užpildyti, kai taikomi pašalinimo pagrindai", "") -> Privaloma užpildyti, kai taikomi pašalinimo pagrindai
A23: Tiekėjo patvirtinimai:
A24: 1. Šiuo pasiūlymu pažymime, kad sutinkame su visomi pirkimo sąlygomis, nustatytomis:
A25: 1.1. viešojo pirkimo dokumentuose
A26: 1.2. kituose pirkimo dokumentuose (jų paaiškinimuose, papildymuose).
A27: 2. Patvirtiname, kad informacija ir duomenys, pateikti pasiūlyme, yra teisingi ir apima viską, ko reikia tinkamam sutarties įvykdymui
A28: 3. Patvirtiname, kad jei pasiūlyme nenurodyti kolegialaus priežiūros/valdymo organų nariai, šie organai juridiniuose asmenyse nėra sudaryti (taikoma, kai pirkimo dokumentuose nustatyti pašalinimo pagrindai).
A29: 4. Pasiūlymas galioja iki termino, nustatyto pirkimo dokumentuose.
A30: 5. Tais atvejais, kai pagal galiojančius teisės aktus tiekėjui nereikia mokėti PVM, jis nurodo priežastis, dėl kurių PVM nemoka:
A31: 6. Tiekėjas kainas pateikia, nurodydamas ne daugiau skaičių po kablelio, nei leidžiama pirkimo dokumentuose.
A32: 1. DALIS | B32: UKRAINIETIŠKI BARŠČIAI (KONSERVAI)
A104: 7. DALIS | B104: KONSERVUOTOS AGURKŲ SALOTOS
A106: Tiekėjo pasiūlymas:
A107: Nr. | B107: Pavadinimas | C107: Kiekis | D107: Mato vienetas | E107: Kaina su PVM | F107: Suma su PVM | G107: Gamintojas | H107: Kilmės šalis | I107: Prekės pavadinimas
A108: 7. | B108: Konservuotos agurkų salotos
A109: 7.1. | B109: Konservuotos agurkų salotos | C109: 5147 | D109: kg | E109: 1.48 | F109: =IF(ISBLANK(E109),"", PRODUCT(C109,E109)) -> 7617.56 | G109: P.P.H.U. "Frutico", pagaminta pagal UAB "Sanitex" užsakymą/Pardavėjas UAB "Sanitex" | H109: Lenkija | I109: Švediškos salotos
E110: Suma be PVM | F110: =IF(OR(F111="",F111="Tiekėjo text"), "", F112-F111) -> 6295.504132
C111: Taikomas PVM dydis (%) | D111: 21 | E111: PVM suma | F111: =IF(OR(F112="", D111=""), "", PRODUCT(D111,F112)/100/SUM(1, D111/100)) -> 1322.055868 | G111: =IF(D111="", "Nurodykite taikomą PVM dydį", "") -> 
E112: Suma su PVM | F112: =IF((SUMPRODUCT(--(F109:F109=""))>0), "", SUM(F109:F109)) -> 7617.56 | G112: =IF((SUMPRODUCT(--(F109:F109=""))>0), "Neužpildytos visų objektų kainos", "") -> 
A116: 8. DALIS | B116: KONSERVUOTI AGURKAI (PJAUSTYTI)
A118: Tiekėjo pasiūlymas:
A119: Nr. | B119: Pavadinimas | C119: Kiekis | D119: Mato vienetas | E119: Kaina su PVM | F119: Suma su PVM | G119: Gamintojas | H119: Kilmės šalis | I119: Prekės pavadinimas
A120: 8. | B120: Konservuoti agurkai (pjaustyti)
A121: 8.1. | B121: Konservuoti agurkai (pjaustyti) | C121: 7466 | D121: kg | E121: 1.98 | F121: =IF(ISBLANK(E121),"", PRODUCT(C121,E121)) -> 14782.68 | G121: Wasta Konserven Fischl GmbH & Co. | H121: Vokietija | I121: Marinuotų agurkėlių griežinėliai
E122: Suma be PVM | F122: =IF(OR(F123="",F123="Tiekėjo text"), "", F124-F123) -> 12217.09091
C123: Taikomas PVM dydis (%) | D123: 21 | E123: PVM suma | F123: =IF(OR(F124="", D123=""), "", PRODUCT(D123,F124)/100/SUM(1, D123/100)) -> 2565.589091 | G123: =IF(D123="", "Nurodykite taikomą PVM dydį", "") -> 
E124: Suma su PVM | F124: =IF((SUMPRODUCT(--(F121:F121=""))>0), "", SUM(F121:F121)) -> 14782.68 | G124: =IF((SUMPRODUCT(--(F121:F121=""))>0), "Neužpildytos visų objektų kainos", "") -> 
A128: 9. DALIS | B128: KONSERVUOTI POMIDORAI
A130: Tiekėjo pasiūlymas:
A131: Nr. | B131: Pavadinimas | C131: Kiekis | D131: Mato vienetas | E131: Kaina su PVM | F131: Suma su PVM | G131: Gamintojas | H131: Kilmės šalis | I131: Prekės pavadinimas
A132: 9. | B132: Konservuoti pomidorai
A133: 9.1. | B133: Konservuoti pomidorai | C133: 40406 | D133: kg | E133: 1.67 | F133: =IF(ISBLANK(E133),"", PRODUCT(C133,E133)) -> 67478.02 | G133: WaldiBen Sp. z o.o., pagaminta pagal UAB "Sanitex" užsakymą/Pardavėjas UAB "Sanitex" | H133: Lenkija | I133: Marinuoti pomidorai, žali Marinuoti pomidorai, raudoni
E134: Suma be PVM | F134: =IF(OR(F135="",F135="Tiekėjo text"), "", F136-F135) -> 55766.95868
C135: Taikomas PVM dydis (%) | D135: 21 | E135: PVM suma | F135: =IF(OR(F136="", D135=""), "", PRODUCT(D135,F136)/100/SUM(1, D135/100)) -> 11711.06132 | G135: =IF(D135="", "Nurodykite taikomą PVM dydį", "") -> 
E136: Suma su PVM | F136: =IF((SUMPRODUCT(--(F133:F133=""))>0), "", SUM(F133:F133)) -> 67478.02 | G136: =IF((SUMPRODUCT(--(F133:F133=""))>0), "Neužpildytos visų objektų kainos", "") -> 
A140: 10. DALIS | B140: KONSERVUOTOS PUPELĖS POMIDORŲ PADAŽE
A142: Tiekėjo pasiūlymas:
A143: Nr. | B143: Pavadinimas | C143: Kiekis | D143: Mato vienetas | E143: Kaina su PVM | F143: Suma su PVM | G143: Gamintojas | H143: Kilmės šalis | I143: Prekės pavadinimas
A144: 10. | B144: Konservuotos pupelės pomidorų padaže
A145: 10.1. | B145: Konservuotos pupelės pomidorų padaže | C145: 3792 | D145: kg | E145: 1.83 | F145: =IF(ISBLANK(E145),"", PRODUCT(C145,E145)) -> 6939.36 | G145: SAC Societa' Alimentari Carmagnolese SAC S.p.A, pagaminta pagal UAB "Sanitex" užsakymą/Pardavėjas UAB "Sanitex" | H145: Italija | I145: Baltosios pupelės, konservuotos, pomidorų padaže
E146: Suma be PVM | F146: =IF(OR(F147="",F147="Tiekėjo text"), "", F148-F147) -> 5735.008264
C147: Taikomas PVM dydis (%) | D147: 21 | E147: PVM suma | F147: =IF(OR(F148="", D147=""), "", PRODUCT(D147,F148)/100/SUM(1, D147/100)) -> 1204.351736 | G147: =IF(D147="", "Nurodykite taikomą PVM dydį", "") -> 
E148: Suma su PVM | F148: =IF((SUMPRODUCT(--(F145:F145=""))>0), "", SUM(F145:F145)) -> 6939.36 | G148: =IF((SUMPRODUCT(--(F145:F145=""))>0), "Neužpildytos visų objektų kainos", "") -> 
A188: 14. DALIS | B188: KONSERVUOTI SVOGŪNĖLIAI
A190: Tiekėjo pasiūlymas:
A191: Nr. | B191: Pavadinimas | C191: Kiekis | D191: Mato vienetas | E191: Kaina su PVM | F191: Suma su PVM | G191: Gamintojas | H191: Kilmės šalis | I191: Prekės pavadinimas
A192: 14. | B192: Konservuoti svogūnėliai
A193: 14.1. | B193: Konservuoti svogūnėliai | C193: 3480 | D193: kg | E193: 2.98 | F193: =IF(ISBLANK(E193),"", PRODUCT(C193,E193)) -> 10370.4 | G193: Wasta Konserven Fischl GmbH & Co. Global Green Europe Kft. Pagaminta pagal UAB "Sanitex" užsakymą/Pardavėjas UAB "Sanitex" | H193: Vengrija; Vokietija | I193: Marinuoti svogūnėliai
E194: Suma be PVM | F194: =IF(OR(F195="",F195="Tiekėjo text"), "", F196-F195) -> 8570.578512
C195: Taikomas PVM dydis (%) | D195: 21 | E195: PVM suma | F195: =IF(OR(F196="", D195=""), "", PRODUCT(D195,F196)/100/SUM(1, D195/100)) -> 1799.821488 | G195: =IF(D195="", "Nurodykite taikomą PVM dydį", "") -> 
E196: Suma su PVM | F196: =IF((SUMPRODUCT(--(F193:F193=""))>0), "", SUM(F193:F193)) -> 10370.4 | G196: =IF((SUMPRODUCT(--(F193:F193=""))>0), "Neužpildytos visų objektų kainos", "") -> 
A200: 15. DALIS | B200: KONSERVUOTI ČESNAKAI
A202: Tiekėjo pasiūlymas:
A203: Nr. | B203: Pavadinimas | C203: Kiekis | D203: Mato vienetas | E203: Kaina su PVM | F203: Suma su PVM | G203: Gamintojas | H203: Kilmės šalis | I203: Prekės pavadinimas
A204: 15. | B204: Konservuoti česnakai
A205: 15.1. | B205: Konservuoti česnakai | C205: 1359 | D205: kg | E205: 5.08 | F205: =IF(ISBLANK(E205),"", PRODUCT(C205,E205)) -> 6903.72 | G205: Greek Trade Sp.z o.o., pagaminta pagal UAB "Sanitex" užsakymą/Pardavėjas UAB "Sanitex" | H205: Lenkija | I205: Česnakai acte
E206: Suma be PVM | F206: =IF(OR(F207="",F207="Tiekėjo text"), "", F208-F207) -> 5705.553719
C207: Taikomas PVM dydis (%) | D207: 21 | E207: PVM suma | F207: =IF(OR(F208="", D207=""), "", PRODUCT(D207,F208)/100/SUM(1, D207/100)) -> 1198.166281 | G207: =IF(D207="", "Nurodykite taikomą PVM dydį", "") -> 
E208: Suma su PVM | F208: =IF((SUMPRODUCT(--(F205:F205=""))>0), "", SUM(F205:F205)) -> 6903.72 | G208: =IF((SUMPRODUCT(--(F205:F205=""))>0), "Neužpildytos visų objektų kainos", "") -> 
A212: 16. DALIS | B212: KONSERVUOTI ŽIRNELIAI SU MORKOMIS
A214: Tiekėjo pasiūlymas:
A215: Nr. | B215: Pavadinimas | C215: Kiekis | D215: Mato vienetas | E215: Kaina su PVM | F215: Suma su PVM | G215: Gamintojas | H215: Kilmės šalis | I215: Prekės pavadinimas
A216: 16. | B216: Konservuoti žirneliai su morkomis
A217: 16.1. | B217: Konservuoti žirneliai su morkomis | C217: 965 | D217: kg | E217: 3.17 | F217: =IF(ISBLANK(E217),"", PRODUCT(C217,E217)) -> 3059.05 | G217: Bonduelle Polska S.A. | H217: Lenkija | I217: Žirneliai su morkomis kubeliais
E218: Suma be PVM | F218: =IF(OR(F219="",F219="Tiekėjo text"), "", F220-F219) -> 2528.140496
C219: Taikomas PVM dydis (%) | D219: 21 | E219: PVM suma | F219: =IF(OR(F220="", D219=""), "", PRODUCT(D219,F220)/100/SUM(1, D219/100)) -> 530.9095041 | G219: =IF(D219="", "Nurodykite taikomą PVM dydį", "") -> 
E220: Suma su PVM | F220: =IF((SUMPRODUCT(--(F217:F217=""))>0), "", SUM(F217:F217)) -> 3059.05 | G220: =IF((SUMPRODUCT(--(F217:F217=""))>0), "Neužpildytos visų objektų kainos", "") -> 
A272: 21. DALIS | B272: VIŠTIENOS ŠLAUNELIŲ KONSERVAI
A274: Tiekėjo pasiūlymas:
A275: Nr. | B275: Pavadinimas | C275: Kiekis | D275: Mato vienetas | E275: Kaina su PVM | F275: Suma su PVM | G275: Gamintojas | H275: Kilmės šalis | I275: Prekės pavadinimas
A276: 21. | B276: Vištienos šlaunelių konservai
A277: 21.1. | B277: Vištienos šlaunelių konservai | C277: 3075 | D277: kg | E277: 5.32 | F277: =IF(ISBLANK(E277),"", PRODUCT(C277,E277)) -> 16359 | G277: SIA "RITAL D" | H277: Latvija | I277: Vištienos šlaunelių konservai
E278: Suma be PVM | F278: =IF(OR(F279="",F279="Tiekėjo text"), "", F280-F279) -> 13519.83471
C279: Taikomas PVM dydis (%) | D279: 21 | E279: PVM suma | F279: =IF(OR(F280="", D279=""), "", PRODUCT(D279,F280)/100/SUM(1, D279/100)) -> 2839.165289 | G279: =IF(D279="", "Nurodykite taikomą PVM dydį", "") -> 
E280: Suma su PVM | F280: =IF((SUMPRODUCT(--(F277:F277=""))>0), "", SUM(F277:F277)) -> 16359 | G280: =IF((SUMPRODUCT(--(F277:F277=""))>0), "Neužpildytos visų objektų kainos", "") -> 

Sheet Subtiekėjai ir priedai
A2: Ūkio subjektai (įskaitant kvazisubtiekėjus - fiziniai asmenys, kuriuos ketinama įdarbinti pirkimo laimėjimo atveju), kurių pajėgumais tiekėjas remiasi, kad atitiktų keliamus kvalifikacijos reikalavimus:
A5: Pavadinimas* | C5: Kodas, adresas | F5: Perduodami įsipareigojimai | I5: Perduodamų įsipareigojimų dalis nuo visos pirkimo sutarties (Eur arba %) | K5: Kval. Reikalavimo Nr.
A17: Subtiekėjams / subteikėjams / subrangovams numatomos perduoti veiklos (privaloma nurodyti) ir šių ūkio subjektų pavadinimai (jei žinomi):
A19: Pavadinimas | C19: Kodas, adresas | F19: Perduodama veikla* | I19: Perduodamos veiklos dalis nuo visos pirkimo sutarties (Eur arba %)
A33: Kartu su pasiūlymu pateikiami šie dokumentai:
A35: Nr. | B35: Dokumento pavadinimas | H35: Dokumentas yra konfidencialus? Taip/Ne
A36: 1 | B36: Jungtinės veiklos kopija (jei taikoma)
A37: 2 | B37: Europos bendrasis viešųjų pirkimų dokumentas | H37: Ne
A38: 3 | B38: Subtiekimo sutartis, ketinimų protokolas, preliminarios sutartys ar kiti dokumentai, patvirtinantys, kad laimėjus pirkimą tiekėjui bus prieinami kitų ūkio subjektų ištekliai (jei pasitelkiami kvalifikacijos atitikimui)
A39: 4 | B39: Pasiūlymo atitikimą pirkimo sąlygų techninei specifikacijai pagrindžiantys dokumentai | H39: Ne
A40: 5 | B40: Įgaliojimas | H40: Taip
A48: Pasiūlyme nurodyta Prekės kaina, išskyrus jos sudedamąsias dalis, subtiekėjai, taip pat kita informacija, kuri teisės aktų nustatyta tvarka turi būti skelbiama arba kitokiu būdu viešai prieinama visuomenei, nėra laikoma konfidencialia informacija. Konfidencialią informaciją sudaro, visų pirma, komercinė (gamybinė) paslaptis ir konfidencialieji pasiūlymų aspektai. Informacija, kurią viešai skelbti įpareigoja Lietuvos Respublikos įstatymai, negali būti tiekėjo nurodoma kaip konfidenciali, todėl, tiekėjui nurodžius tokią informaciją kaip konfidencialią, perkančioji organizacija turi teisę ją skelbti. Jei tiekėjas nenurodo konfidencialios informacijos, laikoma, kad konfidencialios informacijos tiekėjo pasiūlyme nėra. Vadovaujantis Informacijos viešinimo Centrinėje viešųjų pirkimų informacinėje sistemoje tvarkos aprašu, patvirtintu Viešųjų pirkimų tarnybos direktoriaus 2017 m. birželio 19 d. įsakymu Nr. 1S-91 „Dėl Informacijos viešinimo Centrinėje viešųjų pirkimų informacinėje sistemoje tvarkos aprašo patvirtinimo“, perkančioji organizacija laimėjusio dalyvio pasiūlymą, išskyrus informaciją, kurią tiekėjas nurodė kaip konfidencialią, paskelbs CVP IS.
A51: Tiekėjo arba jo įgalioto asmens pareigų pavadinimas: | E51: Įgaliotas asmuo
A53: Pasirašančio asmens vardas ir pavardė: | E53: Živilė Šukaitienė
A100: 2115-2236-2237-2238-2239-2240-2242-2243-2229-2230-2231-2232-2234-2235 2022-10-13 14:33:33
